[Event "Live Chess"]
[Site "Chess.com"]
[Date "2024.06.01"]
[Round "-"]
[White "NomisY"]
[Black "grillage"]
[Result "1-0"]
[WhiteElo "2284"]
[BlackElo "1868"]
[TimeControl "300"]
[EndTime "13:04:35 PDT"]
[Termination "NomisY won on time"]

1. d4 {[%clk 0:04:56.9]} 1... e6 {[%clk 0:04:58.9]} 2. c4 {[%clk 0:04:55.8]}
2... Bb4+ {[%clk 0:04:54.3]} 3. Bd2 {[%clk 0:04:52.5]} 3... Bxd2+ {[%clk
0:04:53.1]} 4. Qxd2 {[%clk 0:04:52.1]} 4... Nf6 {[%clk 0:04:50.8]} 5. Nc3 {[%clk
0:04:51.6]} 5... d6 {[%clk 0:04:48.8]} 6. e3 {[%clk 0:04:37.1]} 6... O-O {[%clk
0:04:44.6]} 7. Bd3 {[%clk 0:04:35.8]} 7... Qe7 {[%clk 0:04:42.7]} 8. Nge2 {[%clk
0:04:32.8]} 8... e5 {[%clk 0:04:41]} 9. O-O {[%clk 0:04:27.8]} 9... Nc6 {[%clk
0:04:28.3]} 10. Rad1 {[%clk 0:04:24.2]} 10... Bg4 {[%clk 0:04:22.8]} 11. f3
{[%clk 0:04:13.6]} 11... exd4 {[%clk 0:04:10.2]} 12. exd4 {[%clk 0:04:05.4]}
12... Bh5 {[%clk 0:04:08]} 13. Rfe1 {[%clk 0:04:02.3]} 13... Qd7 {[%clk
0:04:02.7]} 14. Nf4 {[%clk 0:03:27.8]} 14... Bg6 {[%clk 0:03:58.2]} 15. Nxg6
{[%clk 0:03:17.8]} 15... hxg6 {[%clk 0:03:56.9]} 16. Bc2 {[%clk 0:03:09.8]}
16... Rfe8 {[%clk 0:03:54.5]} 17. Ne4 {[%clk 0:03:07]} 17... Re7 {[%clk
0:03:38.7]} 18. Ba4 {[%clk 0:03:04.7]} 18... Qd8 {[%clk 0:03:25.3]} 19. Qf4
{[%clk 0:02:51.5]} 19... Nxe4 {[%clk 0:03:13.7]} 20. fxe4 {[%clk 0:02:49.1]}
20... Qf8 {[%clk 0:03:00.5]} 21. Rd3 {[%clk 0:02:31.6]} 21... Rae8 {[%clk
0:02:44.2]} 22. Bxc6 {[%clk 0:02:12.8]} 22... bxc6 {[%clk 0:02:42.9]} 23. Rh3
{[%clk 0:02:11.7]} 23... Re6 {[%clk 0:02:07.7]} 24. Qh4 {[%clk 0:01:24.6]} 24...
f6 {[%clk 0:02:05.1]} 25. Qh7+ {[%clk 0:01:18.3]} 25... Kf7 {[%clk 0:02:03.9]}
26. Rg3 {[%clk 0:01:17.6]} 26... f5 {[%clk 0:01:47.5]} 27. Rf1 {[%clk
0:01:09.8]} 27... Ke7 {[%clk 0:01:35]} 28. Rxg6 {[%clk 0:01:04.3]} 28... Rxg6
{[%clk 0:01:16]} 29. Qxg6 {[%clk 0:01:03.3]} 29... Qf6 {[%clk 0:00:49.3]} 30.
Qxf6+ {[%clk 0:00:58]} 30... gxf6 {[%clk 0:00:44.8]} 31. Rxf5 {[%clk 0:00:55.9]}
31... Kf7 {[%clk 0:00:43.8]} 32. Rf4 {[%clk 0:00:53.9]} 32... Kg6 {[%clk
0:00:34.3]} 33. Kf2 {[%clk 0:00:51.6]} 33... Kg5 {[%clk 0:00:33]} 34. Kf3 {[%clk
0:00:49.8]} 34... Rh8 {[%clk 0:00:30.1]} 35. h4+ {[%clk 0:00:34.6]} 35... Kg6
{[%clk 0:00:29]} 36. Kg4 {[%clk 0:00:30.7]} 36... Rb8 {[%clk 0:00:28.3]} 37. b3
{[%clk 0:00:28.7]} 37... a5 {[%clk 0:00:27.9]} 38. Rf5 {[%clk 0:00:27.1]} 38...
a4 {[%clk 0:00:26.3]} 39. h5+ {[%clk 0:00:25.8]} 39... Kg7 {[%clk 0:00:25]} 40.
Rf3 {[%clk 0:00:23.1]} 40... axb3 {[%clk 0:00:24]} 41. axb3 {[%clk 0:00:22.8]}
41... Re8 {[%clk 0:00:23]} 42. Kf5 {[%clk 0:00:21.5]} 42... Rh8 {[%clk
0:00:20.9]} 43. Rg3+ {[%clk 0:00:20.3]} 43... Kf7 {[%clk 0:00:19.5]} 44. Rh3
{[%clk 0:00:17.6]} 44... Rg8 {[%clk 0:00:18.2]} 45. g4 {[%clk 0:00:14.5]} 45...
Rg5+ {[%clk 0:00:15]} 46. Kf4 {[%clk 0:00:12.5]} 46... Kg7 {[%clk 0:00:13.8]}
47. h6+ {[%clk 0:00:11.6]} 47... Kh7 {[%clk 0:00:12.8]} 48. Rh5 {[%clk
0:00:10.3]} 48... Rg6 {[%clk 0:00:10]} 49. Kf5 {[%clk 0:00:08.2]} 49... c5
{[%clk 0:00:06]} 50. d5 {[%clk 0:00:06.7]} 50... Rg8 {[%clk 0:00:02]} 51. g5
{[%clk 0:00:03.7]} 1-0

[Event "Live Chess"]
[Site "Chess.com"]
[Date "2024.06.01"]
[Round "-"]
[White "Grace6363"]
[Black "Ferrarifan27"]
[Result "0-1"]
[WhiteElo "1149"]
[BlackElo "2067"]
[TimeControl "300"]
[EndTime "13:04:42 PDT"]
[Termination "Ferrarifan27 won by resignation"]

1. d4 {[%clk 0:04:57.1]} 1... Nf6 {[%clk 0:04:53]} 2. c4 {[%clk 0:04:56.4]} 2...
e6 {[%clk 0:04:47.7]} 3. Nf3 {[%clk 0:04:54.9]} 3... b6 {[%clk 0:04:43.5]} 4. a3
{[%clk 0:04:52.7]} 4... Bb7 {[%clk 0:04:41.3]} 5. Nc3 {[%clk 0:04:49.7]} 5...
Be7 {[%clk 0:04:37.6]} 6. Bf4 {[%clk 0:04:47.9]} 6... O-O {[%clk 0:04:36.3]} 7.
e3 {[%clk 0:04:45.7]} 7... d6 {[%clk 0:04:35.4]} 8. Be2 {[%clk 0:04:44.2]} 8...
Nbd7 {[%clk 0:04:34.6]} 9. h3 {[%clk 0:04:43.2]} 9... Re8 {[%clk 0:04:33.8]} 10.
O-O {[%clk 0:04:42.6]} 10... Bf8 {[%clk 0:04:32]} 11. Nd2 {[%clk 0:04:41.2]}
11... e5 {[%clk 0:04:30.8]} 12. dxe5 {[%clk 0:04:39.2]} 12... dxe5 {[%clk
0:04:30.1]} 13. Bg3 {[%clk 0:04:37.3]} 13... a5 {[%clk 0:04:28.4]} 14. f3 {[%clk
0:04:30.8]} 14... Bc5 {[%clk 0:04:25.4]} 15. Bf2 {[%clk 0:04:28.1]} 15... e4
{[%clk 0:04:19.4]} 16. f4 {[%clk 0:04:25.7]} 16... Qe7 {[%clk 0:04:12.6]} 17.
Bg3 {[%clk 0:04:20]} 17... Bxe3+ {[%clk 0:04:09.6]} 18. Kh1 {[%clk 0:04:17.7]}
18... Rad8 {[%clk 0:04:06.6]} 19. Qc2 {[%clk 0:04:15.1]} 19... Nc5 {[%clk
0:03:55.3]} 20. Nb3 {[%clk 0:03:49.8]} 20... Nxb3 {[%clk 0:03:43.2]} 21. Qxb3
{[%clk 0:03:49]} 21... Rd2 {[%clk 0:03:33.7]} 22. Rad1 {[%clk 0:03:44.3]} 22...
Red8 {[%clk 0:03:26.8]} 23. Be1 {[%clk 0:03:37.6]} 23... Rxd1 {[%clk 0:03:22]}
24. Nxd1 {[%clk 0:03:37.2]} 24... Bd2 {[%clk 0:03:17.1]} 25. Ne3 {[%clk
0:03:32.6]} 25... Bxe1 {[%clk 0:03:06.7]} 26. Rxe1 {[%clk 0:03:31.6]} 26... Qc5
{[%clk 0:02:57.6]} 27. Ng4 {[%clk 0:03:14.5]} 27... Nxg4 {[%clk 0:02:51.4]} 28.
Bxg4 {[%clk 0:03:13.8]} 28... Qf2 {[%clk 0:02:44.5]} 29. Qe3 {[%clk 0:03:05.6]}
29... Qxe3 {[%clk 0:02:41.2]} 30. Rxe3 {[%clk 0:03:04.1]} 30... g6 {[%clk
0:02:37.2]} 31. Be2 {[%clk 0:02:42.3]} 31... f5 {[%clk 0:02:32.3]} 32. g4 {[%clk
0:02:40.5]} 32... Rd2 {[%clk 0:02:22.4]} 33. b3 {[%clk 0:02:38]} 33... Kf7
{[%clk 0:02:15]} 34. a4 {[%clk 0:02:35]} 34... Ke7 {[%clk 0:02:00.9]} 35. gxf5
{[%clk 0:02:32.2]} 35... gxf5 {[%clk 0:01:59.3]} 36. h4 {[%clk 0:02:30.1]} 36...
Kd6 {[%clk 0:01:56.7]} 37. Kh2 {[%clk 0:02:03.8]} 37... Kc5 {[%clk 0:01:55.3]}
38. Kh3 {[%clk 0:02:02.6]} 38... Kd4 {[%clk 0:01:52.4]} 39. Rg3 {[%clk
0:01:51.1]} 39... Rxe2 {[%clk 0:01:49.5]} 40. h5 {[%clk 0:01:48.9]} 40... Rf2
{[%clk 0:01:46.1]} 41. Kh4 {[%clk 0:01:46.9]} 41... Rxf4+ {[%clk 0:01:41.8]} 42.
Kg5 {[%clk 0:01:46.3]} 42... Rg4+ {[%clk 0:01:40.7]} 43. Rxg4 {[%clk 0:01:43.8]}
43... fxg4 {[%clk 0:01:36.5]} 44. Kxg4 {[%clk 0:01:43]} 44... e3 {[%clk
0:01:35.8]} 0-1

[Event "Live Chess"]
[Site "Chess.com"]
[Date "2024.06.01"]
[Round "-"]
[White "NottheBishopSacrifice"]
[Black "Brooms1989"]
[Result "1-0"]
[WhiteElo "2247"]
[BlackElo "1099"]
[TimeControl "300"]
[EndTime "13:04:45 PDT"]
[Termination "NottheBishopSacrifice won by resignation"]

1. g3 {[%clk 0:04:58.1]} 1... e5 {[%clk 0:04:55.8]} 2. Bg2 {[%clk 0:04:58]} 2...
Nf6 {[%clk 0:04:54.6]} 3. e4 {[%clk 0:04:57]} 3... Nc6 {[%clk 0:04:49.2]} 4. Ne2
{[%clk 0:04:56.3]} 4... h5 {[%clk 0:04:46.4]} 5. h4 {[%clk 0:04:54.7]} 5... d6
{[%clk 0:04:43.3]} 6. O-O {[%clk 0:04:53.9]} 6... Be6 {[%clk 0:04:41.2]} 7. d4
{[%clk 0:04:53.3]} 7... exd4 {[%clk 0:04:37.8]} 8. Nxd4 {[%clk 0:04:53.2]} 8...
Nxd4 {[%clk 0:04:36.4]} 9. Qxd4 {[%clk 0:04:53.1]} 9... Qd7 {[%clk 0:04:35.2]}
10. Bg5 {[%clk 0:04:51.7]} 10... Be7 {[%clk 0:04:28.8]} 11. Nc3 {[%clk 0:04:51]}
11... O-O-O {[%clk 0:04:26.5]} 12. Qxa7 {[%clk 0:04:49]} 1-0

[Event "Live Chess"]
[Site "Chess.com"]
[Date "2024.06.01"]
[Round "-"]
[White "Tushinskiy"]
[Black "matt1979"]
[Result "1-0"]
[WhiteElo "2260"]
[BlackElo "1387"]
[TimeControl "300"]
[EndTime "13:04:51 PDT"]
[Termination "Tushinskiy won by resignation"]

1. d4 {[%clk 0:04:55.7]} 1... e6 {[%clk 0:04:57.9]} 2. c3 {[%clk 0:04:55.6]}
2... f5 {[%clk 0:04:56.3]} 3. Nf3 {[%clk 0:04:55.3]} 3... Nf6 {[%clk 0:04:55]}
4. Bf4 {[%clk 0:04:55.2]} 4... d6 {[%clk 0:04:53]} 5. Bg3 {[%clk 0:04:55.1]}
5... Be7 {[%clk 0:04:51.6]} 6. Nbd2 {[%clk 0:04:55]} 6... O-O {[%clk 0:04:50.6]}
7. Qc2 {[%clk 0:04:54.9]} 7... Nc6 {[%clk 0:04:46.8]} 8. e4 {[%clk 0:04:53.9]}
8... fxe4 {[%clk 0:04:45.4]} 9. Nxe4 {[%clk 0:04:53.8]} 9... Nxe4 {[%clk
0:04:44.4]} 10. Qxe4 {[%clk 0:04:53.7]} 10... Qe8 {[%clk 0:04:37.5]} 11. Bd3
{[%clk 0:04:52.3]} 11... Bf6 {[%clk 0:04:35.4]} 12. Qxh7+ {[%clk 0:04:50.6]}
12... Kf7 {[%clk 0:04:34.9]} 13. Bg6+ {[%clk 0:04:50.2]} 13... Ke7 {[%clk
0:04:34]} 14. Bxe8 {[%clk 0:04:50.1]} 1-0

[Event "Live Chess"]
[Site "Chess.com"]
[Date "2024.06.01"]
[Round "-"]
[White "AndrewBak1"]
[Black "LL220284LL"]
[Result "0-1"]
[WhiteElo "1835"]
[BlackElo "2543"]
[TimeControl "300"]
[EndTime "13:04:59 PDT"]
[Termination "LL220284LL won by resignation"]

1. e4 {[%clk 0:04:50.9]} 1... g6 {[%clk 0:04:59.9]} 2. d4 {[%clk 0:04:49.1]}
2... Bg7 {[%clk 0:04:59.8]} 3. c4 {[%clk 0:04:47.6]} 3... d6 {[%clk 0:04:59.3]}
4. Nc3 {[%clk 0:04:46.5]} 4... Nd7 {[%clk 0:04:57.8]} 5. Be3 {[%clk 0:04:45.3]}
5... c6 {[%clk 0:04:56.7]} 6. Qd2 {[%clk 0:04:43.5]} 6... Qa5 {[%clk 0:04:53.4]}
7. Nf3 {[%clk 0:04:37.2]} 7... a6 {[%clk 0:04:50.2]} 8. Be2 {[%clk 0:04:11]}
8... b5 {[%clk 0:04:46.5]} 9. O-O {[%clk 0:04:07.3]} 9... Ngf6 {[%clk 0:04:43]}
10. h3 {[%clk 0:03:59.4]} 10... b4 {[%clk 0:04:41.6]} 11. Nd1 {[%clk 0:03:33.3]}
0-1

[Event "Live Chess"]
[Site "Chess.com"]
[Date "2024.06.01"]
[Round "-"]
[White "Enhard"]
[Black "Crowded_House"]
[Result "0-1"]
[WhiteElo "1423"]
[BlackElo "1738"]
[TimeControl "300"]
[EndTime "13:05:04 PDT"]
[Termination "Crowded_House won by resignation"]

1. d4 {[%clk 0:04:57.4]} 1... e6 {[%clk 0:04:58.5]} 2. Bf4 {[%clk 0:04:56.2]}
2... d5 {[%clk 0:04:56.9]} 3. e3 {[%clk 0:04:55.7]} 3... Bd6 {[%clk 0:04:56.1]}
4. Bxd6 {[%clk 0:04:54.8]} 4... Qxd6 {[%clk 0:04:54.8]} 5. c3 {[%clk 0:04:54.3]}
5... Nf6 {[%clk 0:04:53.2]} 6. Nf3 {[%clk 0:04:53.8]} 6... O-O {[%clk
0:04:51.6]} 7. h3 {[%clk 0:04:53]} 7... Nbd7 {[%clk 0:04:49.6]} 8. Be2 {[%clk
0:04:52.5]} 8... c5 {[%clk 0:04:48.6]} 9. O-O {[%clk 0:04:50.7]} 9... b6 {[%clk
0:04:46.7]} 10. Nbd2 {[%clk 0:04:49.9]} 10... Bb7 {[%clk 0:04:45.2]} 11. a4
{[%clk 0:04:48.7]} 11... a5 {[%clk 0:04:37.6]} 12. Bb5 {[%clk 0:04:42.6]} 12...
Bc6 {[%clk 0:04:32.1]} 13. Bxc6 {[%clk 0:04:37.5]} 13... Qxc6 {[%clk 0:04:30.9]}
14. Re1 {[%clk 0:04:32.4]} 14... Rfc8 {[%clk 0:04:22.1]} 15. Nb1 {[%clk
0:04:16.2]} 15... cxd4 {[%clk 0:04:17.7]} 16. exd4 {[%clk 0:04:14.3]} 16... Ne4
{[%clk 0:04:09.8]} 17. Na3 {[%clk 0:04:11.2]} 17... Nd6 {[%clk 0:03:52.9]} 18.
Nc2 {[%clk 0:04:05]} 18... Nc4 {[%clk 0:03:48.1]} 19. Qc1 {[%clk 0:03:55.7]}
19... Rcb8 {[%clk 0:03:41.7]} 20. Ne3 {[%clk 0:03:54.3]} 20... Nf6 {[%clk
0:03:32.8]} 21. Nxc4 {[%clk 0:03:52.3]} 21... Qxc4 {[%clk 0:03:31.8]} 22. Nd2
{[%clk 0:03:51.1]} 22... Qc6 {[%clk 0:03:24.5]} 23. f3 {[%clk 0:03:45.6]} 23...
Re8 {[%clk 0:03:22.4]} 24. Qc2 {[%clk 0:03:40.1]} 24... Re7 {[%clk 0:03:19.2]}
25. Qd3 {[%clk 0:03:32.7]} 25... Rae8 {[%clk 0:03:16.2]} 26. Re5 {[%clk
0:03:17.7]} 26... g6 {[%clk 0:03:02.9]} 27. Nb1 {[%clk 0:03:14.2]} 27... Nd7
{[%clk 0:02:52.8]} 28. Re1 {[%clk 0:03:08.2]} 28... e5 {[%clk 0:02:49.6]} 29.
Qd1 {[%clk 0:02:58.7]} 29... e4 {[%clk 0:02:41.9]} 30. fxe4 {[%clk 0:02:50.6]}
30... Rxe4 {[%clk 0:02:39.1]} 31. Rxe4 {[%clk 0:02:48.8]} 31... Rxe4 {[%clk
0:02:37.3]} 32. Nd2 {[%clk 0:02:46.9]} 32... Re3 {[%clk 0:02:30]} 33. Nf3 {[%clk
0:02:44.9]} 33... Qe6 {[%clk 0:02:25.5]} 34. Qb3 {[%clk 0:02:36.3]} 34... Nf6
{[%clk 0:02:17.4]} 35. Rf1 {[%clk 0:02:27.3]} 35... Ne4 {[%clk 0:02:09.2]} 36.
Qd1 {[%clk 0:02:06.8]} 36... Ng3 {[%clk 0:02:02.3]} 37. Re1 {[%clk 0:02:03.8]}
37... Rxe1+ {[%clk 0:01:59.6]} 38. Qxe1 {[%clk 0:02:02.9]} 38... Qxe1+ {[%clk
0:01:58.2]} 39. Nxe1 {[%clk 0:02:02.2]} 39... Ne4 {[%clk 0:01:40.2]} 40. Nd3
{[%clk 0:01:54.2]} 40... f6 {[%clk 0:01:24.3]} 41. Kf1 {[%clk 0:01:52]} 41...
Nd2+ {[%clk 0:01:22.1]} 42. Ke2 {[%clk 0:01:47.8]} 42... Nc4 {[%clk 0:01:20.8]}
43. Kf3 {[%clk 0:01:45.2]} 43... g5 {[%clk 0:01:16.8]} 44. g3 {[%clk 0:01:38.4]}
44... Kf7 {[%clk 0:01:14.5]} 45. b3 {[%clk 0:01:33.1]} 45... Nd2+ {[%clk
0:01:11.5]} 46. Kg4 {[%clk 0:01:28.1]} 46... Nxb3 {[%clk 0:01:10.2]} 47. Kf5
{[%clk 0:01:17.6]} 47... Nd2 {[%clk 0:01:03.6]} 48. h4 {[%clk 0:01:14.5]} 48...
gxh4 {[%clk 0:01:02]} 49. gxh4 {[%clk 0:01:13.6]} 49... Nb1 {[%clk 0:01:01]} 50.
Nf4 {[%clk 0:00:54.9]} 50... Nxc3 {[%clk 0:01:00]} 51. h5 {[%clk 0:00:50.9]}
51... Nxa4 {[%clk 0:00:56.6]} 52. Nxd5 {[%clk 0:00:50]} 52... b5 {[%clk
0:00:52.2]} 53. Nxf6 {[%clk 0:00:47.7]} 53... b4 {[%clk 0:00:49.3]} 54. Nd5
{[%clk 0:00:46.5]} 54... b3 {[%clk 0:00:46.4]} 0-1

[Event "Live Chess"]
[Site "Chess.com"]
[Date "2024.06.01"]
[Round "-"]
[White "WelshTiger"]
[Black "Zhevzh1k7"]
[Result "1-0"]
[WhiteElo "2543"]
[BlackElo "1105"]
[TimeControl "300"]
[EndTime "13:05:21 PDT"]
[Termination "WelshTiger won by resignation"]

1. e4 {[%clk 0:04:57.4]} 1... c6 {[%clk 0:04:57.6]} 2. d4 {[%clk 0:04:56]} 2...
d5 {[%clk 0:04:56.1]} 3. e5 {[%clk 0:04:55.7]} 3... c5 {[%clk 0:04:53.5]} 4.
dxc5 {[%clk 0:04:54.4]} 4... e6 {[%clk 0:04:51.9]} 5. Be3 {[%clk 0:04:49.9]}
5... Nc6 {[%clk 0:04:49]} 6. f4 {[%clk 0:04:49]} 6... Qa5+ {[%clk 0:04:46.7]} 7.
Nd2 {[%clk 0:04:40.9]} 7... Bxc5 {[%clk 0:04:44.3]} 8. Bxc5 {[%clk 0:04:37.2]}
8... Qxc5 {[%clk 0:04:43]} 9. Ngf3 {[%clk 0:04:35.4]} 9... Nge7 {[%clk
0:04:38.7]} 10. g3 {[%clk 0:04:22.1]} 10... Nf5 {[%clk 0:04:37.2]} 11. Nb3
{[%clk 0:04:14.4]} 11... Ne3 {[%clk 0:04:32.7]} 12. Nxc5 {[%clk 0:04:11.4]}
12... Nxd1 {[%clk 0:04:30.2]} 13. Rxd1 {[%clk 0:04:10.6]} 13... b6 {[%clk
0:04:25.4]} 14. Bb5 {[%clk 0:04:09.4]} 14... bxc5 {[%clk 0:04:20.7]} 15. Bxc6+
{[%clk 0:04:08.6]} 15... Bd7 {[%clk 0:04:19.8]} 16. Bxa8 {[%clk 0:04:07.6]}
16... Ke7 {[%clk 0:04:19.7]} 1-0

[Event "Live Chess"]
[Site "Chess.com"]
[Date "2024.06.01"]
[Round "-"]
[White "Kyrylo7770"]
[Black "MaximKovalenko83"]
[Result "0-1"]
[WhiteElo "1670"]
[BlackElo "2240"]
[TimeControl "300"]
[EndTime "13:05:44 PDT"]
[Termination "MaximKovalenko83 won by checkmate"]

1. d4 {[%clk 0:04:59.3]} 1... d5 {[%clk 0:04:58.6]} 2. Nf3 {[%clk 0:04:58.8]}
2... Nf6 {[%clk 0:04:56.9]} 3. Bf4 {[%clk 0:04:58.1]} 3... c5 {[%clk 0:04:55.8]}
4. e3 {[%clk 0:04:57.7]} 4... Nc6 {[%clk 0:04:55.4]} 5. c3 {[%clk 0:04:57.1]}
5... Bg4 {[%clk 0:04:54.9]} 6. Be2 {[%clk 0:04:56.2]} 6... e6 {[%clk 0:04:54.4]}
7. h3 {[%clk 0:04:53.4]} 7... Bh5 {[%clk 0:04:53.1]} 8. Ne5 {[%clk 0:04:51.8]}
8... Bxe2 {[%clk 0:04:51.5]} 9. Qxe2 {[%clk 0:04:51.1]} 9... Bd6 {[%clk
0:04:49.6]} 10. Qb5 {[%clk 0:04:48.8]} 10... Bxe5 {[%clk 0:04:47.5]} 11. Bxe5
{[%clk 0:04:47.2]} 11... O-O {[%clk 0:04:44.8]} 12. Qxc5 {[%clk 0:04:46.3]}
12... Nxe5 {[%clk 0:04:43.2]} 13. dxe5 {[%clk 0:04:45.8]} 13... Ne4 {[%clk
0:04:41.6]} 14. Qd4 {[%clk 0:04:44.1]} 14... Qg5 {[%clk 0:04:37.3]} 15. O-O
{[%clk 0:04:38.3]} 15... b6 {[%clk 0:04:33.9]} 16. f4 {[%clk 0:04:37.6]} 16...
Qg3 {[%clk 0:04:30.1]} 17. Rf3 {[%clk 0:04:36.8]} 17... Qe1+ {[%clk 0:04:28.3]}
18. Kh2 {[%clk 0:04:35.7]} 18... Rac8 {[%clk 0:04:17.9]} 19. f5 {[%clk
0:04:20.9]} 19... Rc4 {[%clk 0:04:15.5]} 20. Qd3 {[%clk 0:04:18.2]} 20... Nf2
{[%clk 0:04:09.5]} 21. Qc2 {[%clk 0:04:15.1]} 21... Qh1+ {[%clk 0:03:52.8]} 22.
Kg3 {[%clk 0:04:14.1]} 22... Ne4+ {[%clk 0:03:51.4]} 23. Kg4 {[%clk 0:04:05.2]}
23... Nxc3+ {[%clk 0:03:47.9]} 24. Kg5 {[%clk 0:03:59.1]} 24... Ne4+ {[%clk
0:03:46.1]} 25. Kh5 {[%clk 0:03:55]} 25... Rxc2 {[%clk 0:03:41.7]} 26. f6 {[%clk
0:03:53.9]} 26... Qxg2 {[%clk 0:03:36.9]} 27. Rf4 {[%clk 0:03:51.6]} 27... Qg5#
{[%clk 0:03:35.3]} 0-1

[Event "Live Chess"]
[Site "Chess.com"]
[Date "2024.06.01"]
[Round "-"]
[White "KeithArkell"]
[Black "Eva3337"]
[Result "1-0"]
[WhiteElo "2457"]
[BlackElo "1153"]
[TimeControl "300"]
[EndTime "13:05:51 PDT"]
[Termination "KeithArkell won by resignation"]

1. d4 {[%clk 0:04:57.7]} 1... Nc6 {[%clk 0:04:56.2]} 2. Nf3 {[%clk 0:04:57]}
2... d5 {[%clk 0:04:54.2]} 3. c4 {[%clk 0:04:56.1]} 3... Be6 {[%clk 0:04:49]} 4.
cxd5 {[%clk 0:04:54.6]} 4... Bxd5 {[%clk 0:04:47.3]} 5. e3 {[%clk 0:04:52.5]}
5... Qd6 {[%clk 0:04:34.4]} 6. Nc3 {[%clk 0:04:51.7]} 6... O-O-O {[%clk
0:04:25]} 7. Nxd5 {[%clk 0:04:50.7]} 7... Qxd5 {[%clk 0:04:21.7]} 8. Be2 {[%clk
0:04:49.1]} 8... e6 {[%clk 0:04:14.6]} 9. O-O {[%clk 0:04:47.1]} 9... Nf6 {[%clk
0:04:12]} 10. Qa4 {[%clk 0:04:43.6]} 10... a6 {[%clk 0:04:09]} 11. Bd2 {[%clk
0:04:42.5]} 11... Bd6 {[%clk 0:04:00.7]} 12. Rfc1 {[%clk 0:04:38.3]} 12... e5
{[%clk 0:03:56.1]} 13. Bxa6 {[%clk 0:04:35.6]} 13... exd4 {[%clk 0:03:44.8]} 14.
Rxc6 {[%clk 0:04:29.8]} 1-0

[Event "Live Chess"]
[Site "Chess.com"]
[Date "2024.06.01"]
[Round "-"]
[White "Silverback7829"]
[Black "vincents82"]
[Result "0-1"]
[WhiteElo "998"]
[BlackElo "2095"]
[TimeControl "300"]
[EndTime "13:05:54 PDT"]
[Termination "vincents82 won by checkmate"]

1. d4 {[%clk 0:04:57.5]} 1... d5 {[%clk 0:04:58.4]} 2. Nf3 {[%clk 0:04:56]} 2...
Nf6 {[%clk 0:04:57.5]} 3. e3 {[%clk 0:04:54.6]} 3... Bf5 {[%clk 0:04:56.8]} 4.
Nc3 {[%clk 0:04:51.7]} 4... c6 {[%clk 0:04:55.7]} 5. Bd3 {[%clk 0:04:47.5]} 5...
Bxd3 {[%clk 0:04:54.6]} 6. Qxd3 {[%clk 0:04:45.1]} 6... e6 {[%clk 0:04:54.4]} 7.
a4 {[%clk 0:04:41.7]} 7... Nbd7 {[%clk 0:04:53.7]} 8. b3 {[%clk 0:04:39.9]} 8...
Bb4 {[%clk 0:04:52.4]} 9. Bd2 {[%clk 0:04:34.9]} 9... O-O {[%clk 0:04:48.8]} 10.
O-O {[%clk 0:04:31.7]} 10... Bxc3 {[%clk 0:04:47]} 11. Bxc3 {[%clk 0:04:29.3]}
11... Ne4 {[%clk 0:04:45.7]} 12. Bb4 {[%clk 0:04:21.7]} 12... Re8 {[%clk
0:04:43]} 13. Qd1 {[%clk 0:04:04.9]} 13... e5 {[%clk 0:04:40.6]} 14. dxe5 {[%clk
0:04:03]} 14... Nxe5 {[%clk 0:04:39.3]} 15. Nxe5 {[%clk 0:04:00.5]} 15... Rxe5
{[%clk 0:04:38]} 16. f4 {[%clk 0:03:53.5]} 16... Re8 {[%clk 0:04:30.5]} 17. Qg4
{[%clk 0:03:47.1]} 17... Nf6 {[%clk 0:04:25.5]} 18. Qe2 {[%clk 0:03:44]} 18...
Qb6 {[%clk 0:04:16.6]} 19. Rad1 {[%clk 0:03:33.6]} 19... Rxe3 {[%clk 0:04:13.3]}
20. Qd2 {[%clk 0:03:17.9]} 20... Rxb3+ {[%clk 0:04:06.7]} 21. Kh1 {[%clk
0:03:04.8]} 21... Rxb4 {[%clk 0:04:04.4]} 22. Rde1 {[%clk 0:02:54.9]} 22... Re4
{[%clk 0:04:01.3]} 23. Rxe4 {[%clk 0:02:50.9]} 23... Nxe4 {[%clk 0:03:59.7]} 24.
Qd3 {[%clk 0:02:41.2]} 24... Nf2+ {[%clk 0:03:55.9]} 25. Rxf2 {[%clk 0:02:34.7]}
25... Qxf2 {[%clk 0:03:54]} 26. h3 {[%clk 0:02:31.6]} 26... Re8 {[%clk
0:03:51.1]} 27. Qf5 {[%clk 0:02:10.8]} 27... Qg3 {[%clk 0:03:45]} 28. Qd7 {[%clk
0:02:02.5]} 28... Re1# {[%clk 0:03:42.5]} 0-1

[Event "Live Chess"]
[Site "Chess.com"]
[Date "2024.06.01"]
[Round "-"]
[White "bonantagulo"]
[Black "jimwad"]
[Result "1-0"]
[WhiteElo "2109"]
[BlackElo "1269"]
[TimeControl "300"]
[EndTime "13:05:59 PDT"]
[Termination "bonantagulo won by resignation"]

1. d4 {[%clk 0:04:54.2]} 1... d5 {[%clk 0:04:58.9]} 2. c4 {[%clk 0:04:50.1]}
2... c6 {[%clk 0:04:57.6]} 3. Nc3 {[%clk 0:04:48.1]} 3... Nf6 {[%clk 0:04:55.6]}
4. Nf3 {[%clk 0:04:47.1]} 4... Bf5 {[%clk 0:04:53.9]} 5. cxd5 {[%clk 0:04:45.7]}
5... Nxd5 {[%clk 0:04:51.9]} 6. g3 {[%clk 0:04:20.6]} 6... Nxc3 {[%clk
0:04:46.3]} 7. bxc3 {[%clk 0:04:20.5]} 7... e6 {[%clk 0:04:42.9]} 8. Bg2 {[%clk
0:04:18.3]} 8... Qa5 {[%clk 0:04:40.1]} 9. Qb3 {[%clk 0:04:11.7]} 9... Qa6
{[%clk 0:04:30.5]} 10. O-O {[%clk 0:04:08.3]} 10... Be7 {[%clk 0:04:27.1]} 11.
Bg5 {[%clk 0:03:54.1]} 11... Bxg5 {[%clk 0:04:25.2]} 12. Nxg5 {[%clk 0:03:54]}
12... O-O {[%clk 0:04:22.9]} 13. e4 {[%clk 0:03:49.4]} 13... Bg6 {[%clk
0:04:19.6]} 14. e5 {[%clk 0:03:44.3]} 14... Bd3 {[%clk 0:04:16.1]} 15. Rfe1
{[%clk 0:03:39.2]} 15... Bc4 {[%clk 0:04:07.9]} 16. Qc2 {[%clk 0:03:35.6]} 16...
g6 {[%clk 0:04:03.5]} 17. Ne4 {[%clk 0:03:33.8]} 17... Bd3 {[%clk 0:03:54.7]}
18. Nf6+ {[%clk 0:03:31.1]} 18... Kg7 {[%clk 0:03:52.2]} 19. Qd2 {[%clk
0:03:28.5]} 19... Bf5 {[%clk 0:03:44.2]} 20. h4 {[%clk 0:03:18.7]} 20... h5
{[%clk 0:03:41.7]} 21. Qg5 {[%clk 0:03:12.4]} 21... Qd3 {[%clk 0:03:36]} 22.
Nxh5+ {[%clk 0:03:09.2]} 22... Kh7 {[%clk 0:03:28]} 23. Nf6+ {[%clk 0:02:40.8]}
23... Kg7 {[%clk 0:03:26.6]} 24. h5 {[%clk 0:02:24.6]} 24... Rh8 {[%clk
0:03:25.3]} 25. h6+ {[%clk 0:02:11.1]} 25... Rxh6 {[%clk 0:03:23.9]} 26. Ne8+
{[%clk 0:02:10.1]} 26... Kh7 {[%clk 0:03:19.5]} 27. Qf6 {[%clk 0:02:07.8]} 1-0